fUST/lending_fUST_20240727
["ID","MTS","AMOUNT","RATE_DAILY","PERIOD"]
[333291187,1722033052987,166.106732,9.9e-05,2]
[333291188,1722033069775,1381.87168016,0.00012,2]
[333291189,1722033070012,319.88244183,0.00012,2]
[333291190,1722033070209,254.78704357,0.00012,2]
[333291191,1722033076057,32.48283852,9.9e-05,2]
[333291195,1722034029128,-278.58662551,9.801e-05,2]
[333291196,1722034054115,-979.82254812,9.801e-05,2]
[333291197,1722034054139,-937.51923871,9.9e-05,2]
[333291198,1722034054176,-320.88993492,9.9e-05,2]
[333291199,1722034054199,-156.89240866,9.999e-05,2]
[333291200,1722034054221,-182.98073957,9.999e-05,2]
[333291201,1722034054243,-168.0007228,0.00013425,2]
[333291202,1722034054264,-350.34654767,0.0001356,2]
[333291203,1722034054286,-186.52439307,0.00013588,2]
[333291204,1722034054307,-186.52439303,0.00013591,2]
[333291205,1722034054329,-186.52439303,0.00013593,2]
[333291206,1722034054571,-186.52439303,0.00013596,2]
[333291207,1722034054594,-64.26501684,0.00013598,2]
[333291209,1722034145111,-150.49790105,9.9e-05,2]
[333291210,1722034145133,-182.98073957,9.999e-05,2]
[333291212,1722034187937,182.98073957,0.0001212,2]
[333291215,1722034232385,-149.7622162,0.00013561,2]
[333291216,1722034232395,-122.25937619,0.00013598,2]
[333291217,1722034232405,-733.87818429,0.00013598,2]
[333291218,1722034232414,-331.41360574,0.00013598,2]
[333291219,1722034232423,-3816.60190077,0.00013678,2]
[333291220,1722034232433,-10177.6050687,0.00013688,2]
[333291221,1722034232442,-278.39475687,0.00013689,2]
[333291222,1722034232454,-993.80587672,0.00013689,2]
[333291223,1722034232463,-907.34315536,0.00013698,2]
[333291224,1722034232474,-354.30292284,0.00013698,2]
[333291225,1722034232483,-523.00857716,0.00013698,2]
[333291241,1722034238438,-2699.89142284,0.00013698,2]
[333291242,1722034238449,-2277.46110101,0.00013698,2]
[333291243,1722034238507,-775.68953518,0.00013698,2]
[333291277,1722034240338,-169.74936381,0.00013698,2]
[333291279,1722034240348,-3222.9,0.00013698,2]
[333291281,1722034240358,-3222.9,0.00013698,2]
[333291283,1722034240369,-3222.9,0.00013698,2]
[333291285,1722034240378,-3222.9,0.00013698,2]
[333291287,1722034240388,-3222.9,0.00013698,2]
[333291289,1722034240398,-3222.9,0.00013698,2]
[333291291,1722034240407,-3222.9,0.00013698,2]
[333291293,1722034240417,-3222.9,0.00013698,2]
[333291295,1722034240427,-3222.9,0.00013698,2]
[333291298,1722034240438,-3222.9,0.00013698,2]
[333291300,1722034240447,-3222.9,0.00013698,2]
[333291302,1722034240457,-3222.9,0.00013698,2]
[333291304,1722034240467,-3222.9,0.00013698,2]
[333291306,1722034240477,-3222.9,0.00013698,2]
[333291308,1722034240491,-3222.9,0.00013698,2]
[333291310,1722034240502,-3222.9,0.00013698,2]
[333291312,1722034240512,-3222.9,0.00013698,2]
[333291315,1722034240522,-3222.9,0.00013698,2]
[333291317,1722034240534,-3222.9,0.00013698,2]
[333291319,1722034240544,-3222.9,0.00013698,2]
[333291321,1722034240555,-3222.9,0.00013698,2]
[333291323,1722034240566,-3222.9122029,0.00013698,2]
[333291325,1722034240576,-516.06135797,0.00013698,2]
[333291327,1722034240586,-500.0,0.00013698,2]
[333291329,1722034240595,-500.0,0.00013698,2]
[333291331,1722034240605,-500.0,0.00013698,2]
[333291333,1722034240615,-500.0,0.00013698,2]
[333291335,1722034240625,-500.0,0.00013698,2]
[333291337,1722034240634,-500.0,0.00013698,2]
[333291339,1722034240643,-500.0,0.00013698,2]
[333291341,1722034240652,-500.0,0.00013698,2]
[333291343,1722034240662,-840.09,0.00013698,2]
[333291345,1722034240671,-500.0,0.00013698,2]
[333291347,1722034240681,-836.76,0.00013698,2]
[333291349,1722034240692,-500.0,0.00013698,2]
[333291351,1722034240701,-500.0,0.00013698,2]
[333291353,1722034240711,-574.65415458,0.00013698,2]
[333291355,1722034240720,-500.0,0.00013698,2]
[333291357,1722034240730,-500.0,0.00013698,2]
[333291359,1722034240740,-500.0,0.00013698,2]
[333291361,1722034240750,-500.0,0.00013698,2]
[333291363,1722034240759,-500.0,0.00013698,2]
[333291365,1722034240770,-151.959013,0.00013698,2]
[333291367,1722034240782,-509.84548094,0.00013698,2]
[333291369,1722034240791,-500.0,0.00013698,2]
[333291371,1722034240801,-500.0,0.00013698,2]
[333291373,1722034240810,-502.24,0.00013698,2]
[333291375,1722034240824,-1207.31,0.00013698,2]
[333291378,1722034240835,-500.0,0.00013698,2]
[333291380,1722034240845,-534.68855558,0.00013698,2]
[333291382,1722034240855,-500.0,0.00013698,2]
[333291384,1722034240867,-632.38,0.00013698,2]
[333291386,1722034240879,-186.77593733,0.00013698,2]
[333291388,1722034240890,-503.88218785,0.00013698,2]
[333291390,1722034240902,-500.0,0.00013698,2]
[333291392,1722034240914,-500.0,0.00013698,2]
[333291395,1722034240924,-500.0,0.00013698,2]
[333291397,1722034240937,-500.0,0.00013698,2]
[333291399,1722034240947,-500.0,0.00013698,2]
[333291401,1722034240958,-313.5186,0.00013698,2]
[333291403,1722034240968,-501.34573133,0.00013698,2]
[333291405,1722034240977,-505.92248402,0.00013698,2]
[333291407,1722034240987,-500.0,0.00013698,2]
[333291409,1722034240998,-500.0,0.00013698,2]
[333291411,1722034241009,-501.11110698,0.00013698,2]
[333291414,1722034241022,-500.0,0.00013698,2]
[333291416,1722034241033,-500.0,0.00013698,2]
[333291418,1722034241044,-353.63996096,0.00013698,2]
[333291420,1722034241056,-500.0,0.00013698,2]
[333291422,1722034241067,-894.13,0.00013698,2]
[333291424,1722034241076,-515.77249068,0.00013698,2]
[333291426,1722034241088,-500.0,0.00013698,2]
[333291428,1722034241099,-500.0,0.00013698,2]
[333291431,1722034241111,-500.0,0.00013698,2]
[333291433,1722034241122,-500.0,0.00013698,2]
[333291435,1722034241133,-500.0,0.00013698,2]
[333291437,1722034241144,-500.0,0.00013698,2]
[333291439,1722034241154,-500.0,0.00013698,2]
[333291442,1722034241167,-500.0,0.00013698,2]
[333291444,1722034241177,-500.0,0.00013698,2]
[333291446,1722034241186,-500.0,0.00013698,2]
[333291448,1722034241196,-500.0,0.00013698,2]
[333291450,1722034241206,-519.42437233,0.00013698,2]
[333291452,1722034241215,-500.0,0.00013698,2]
[333291454,1722034241225,-502.02808241,0.00013698,2]
[333291456,1722034241235,-557.06,0.00013698,2]
[333291458,1722034241245,-500.0,0.00013698,2]
[333291460,1722034241255,-775.1,0.00013698,2]
[333291462,1722034241264,-500.0,0.00013698,2]
[333291464,1722034241273,-500.0,0.00013698,2]
[333291466,1722034241284,-500.0,0.00013698,2]
[333291468,1722034241294,-500.0,0.00013698,2]
[333291470,1722034241303,-834.49,0.00013698,2]
[333291473,1722034241314,-877.7,0.00013698,2]
[333291475,1722034241325,-302.55066996,0.00013698,2]
[333291477,1722034241336,-500.0,0.00013698,2]
[333291479,1722034241348,-500.0,0.00013698,2]
[333291482,1722034241359,-500.0,0.00013698,2]
[333291484,1722034241369,-500.0,0.00013698,2]
[333291486,1722034241379,-500.0,0.00013698,2]
[333291488,1722034241389,-500.0,0.00013698,2]
[333291490,1722034241400,-268.45224502,0.00013698,2]
[333291492,1722034241410,-500.39114222,0.00013698,2]
[333291494,1722034241419,-500.0,0.00013698,2]
[333291496,1722034241429,-500.63549699,0.00013698,2]
[333291498,1722034241439,-457.91919366,0.00013698,2]
[333291500,1722034241449,-837.32,0.00013698,2]
[333291502,1722034241459,-500.0,0.00013698,2]
[333291504,1722034241469,-500.0,0.00013698,2]
[333291507,1722034241479,-1029.56,0.00013698,2]
[333291509,1722034241489,-500.0,0.00013698,2]
[333291511,1722034241498,-500.0,0.00013698,2]
[333291513,1722034241509,-151.0,0.00013698,2]
[333291515,1722034241518,-151.0,0.00013698,2]
[333291517,1722034241530,-293.856307,0.00013698,2]
[333291519,1722034241541,-151.0,0.00013698,2]
[333291521,1722034241551,-151.0,0.00013698,2]
[333291523,1722034241562,-151.0,0.00013698,2]
[333291526,1722034241572,-151.0,0.00013698,2]
[333291528,1722034241583,-151.0,0.00013698,2]
[333291530,1722034241593,-500.0,0.00013698,2]
[333291532,1722034241602,-151.0,0.00013698,2]
[333291534,1722034241612,-282.227182,0.00013698,2]
[333291536,1722034241621,-500.0,0.00013698,2]
[333291538,1722034241630,-500.0,0.00013698,2]
[333291540,1722034241639,-500.0,0.00013698,2]
[333291542,1722034241661,-500.0,0.00013698,2]
[333291544,1722034241673,-945.77,0.00013698,2]
[333291546,1722034241683,-500.0,0.00013698,2]
[333291548,1722034241692,-500.0,0.00013698,2]
[333291550,1722034241702,-500.0,0.00013698,2]
[333291551,1722034241711,-534.09194232,0.00013698,2]
[333291552,1722034241721,-500.0,0.00013698,2]
[333291553,1722034241730,-500.0,0.00013698,2]
[333291554,1722034241741,-500.0,0.00013698,2]
[333291555,1722034241750,-151.0,0.00013698,2]
[333291556,1722034241760,-151.0,0.00013698,2]
[333291557,1722034241771,-151.0,0.00013698,2]
[333291558,1722034241781,-151.0,0.00013698,2]
[333291559,1722034241790,-151.0,0.00013698,2]
[333291560,1722034241800,-151.0,0.00013698,2]
[333291561,1722034241811,-151.0,0.00013698,2]
[333291562,1722034241822,-500.0,0.00013698,2]
[333291563,1722034241832,-1211.62,0.00013698,2]
[333291564,1722034241843,-151.0,0.00013698,2]
[333291565,1722034241853,-151.0,0.00013698,2]
[333291566,1722034241864,-151.0,0.00013698,2]
[333291567,1722034241876,-151.0,0.00013698,2]
[333291568,1722034241885,-151.0,0.00013698,2]
[333291569,1722034241895,-151.0,0.00013698,2]
[333291570,1722034241905,-151.0,0.00013698,2]
[333291571,1722034241914,-319.522517,0.00013698,2]
[333291572,1722034241924,-319.522517,0.00013698,2]
[333291573,1722034241933,-319.522517,0.00013698,2]
[333291574,1722034241943,-500.0,0.00013698,2]
[333291575,1722034241953,-319.522517,0.00013698,2]
[333291576,1722034241964,-319.522517,0.00013698,2]
[333291577,1722034241974,-319.522517,0.00013698,2]
[333291578,1722034241983,-319.522517,0.00013698,2]
[333291579,1722034241993,-319.522517,0.00013698,2]
[333291580,1722034242003,-319.522517,0.00013698,2]
[333291581,1722034242013,-319.522517,0.00013698,2]
[333291582,1722034242023,-502.03619974,0.00013698,2]
[333291583,1722034242034,-319.522517,0.00013698,2]
[333291584,1722034242043,-319.522517,0.00013698,2]
[333291585,1722034242053,-319.522517,0.00013698,2]
[333291586,1722034242063,-319.522517,0.00013698,2]
[333291587,1722034242074,-319.522517,0.00013698,2]
[333291588,1722034242083,-500.0,0.00013698,2]
[333291589,1722034242286,-319.522517,0.00013698,2]
[333291590,1722034242297,-319.522517,0.00013698,2]
[333291591,1722034242307,-319.522517,0.00013698,2]
[333291592,1722034242317,-319.522517,0.00013698,2]
[333291593,1722034242327,-319.522521,0.00013698,2]
[333291594,1722034242336,-500.0,0.00013698,2]
[333291595,1722034242345,-151.0,0.00013698,2]
[333291596,1722034242355,-151.0,0.00013698,2]
[333291597,1722034242365,-151.0,0.00013698,2]
[333291598,1722034242374,-151.0,0.00013698,2]
[333291599,1722034242383,-151.0,0.00013698,2]
[333291600,1722034242393,-500.0,0.00013698,2]
[333291601,1722034242402,-151.0,0.00013698,2]
[333291602,1722034242412,-178.059547,0.00013698,2]
[333291603,1722034242422,-500.0,0.00013698,2]
[333291604,1722034242431,-500.0,0.00013698,2]
[333291605,1722034242440,-151.0,0.00013698,2]
[333291606,1722034242455,-159.460595,0.00013698,2]
[333291607,1722034242464,-936.14,0.00013698,2]
[333291608,1722034242474,-500.0,0.00013698,2]
[333291609,1722034242484,-786.77,0.00013698,2]
[333291610,1722034242494,-500.0,0.00013698,2]
[333291611,1722034242504,-500.0,0.00013698,2]
[333291612,1722034242514,-500.0,0.00013698,2]
[333291613,1722034242524,-500.0,0.00013698,2]
[333291614,1722034242534,-500.0,0.00013698,2]
[333291615,1722034242544,-500.0,0.00013698,2]
[333291616,1722034242554,-500.0,0.00013698,2]
[333291617,1722034242564,-500.0,0.00013698,2]
[333291618,1722034242574,-590.02188297,0.00013698,2]
[333291619,1722034242583,-500.0,0.00013698,2]
[333291621,1722034242592,-500.0,0.00013698,2]
[333291622,1722034242601,-500.0,0.00013698,2]
[333291623,1722034242611,-1702.14,0.00013698,2]
[333291624,1722034242621,-500.0,0.00013698,2]
[333291625,1722034242630,-754.46,0.00013698,2]
[333291626,1722034242640,-500.0,0.00013698,2]
[333291627,1722034242650,-1153.47,0.00013698,2]
[333291628,1722034242660,-500.0,0.00013698,2]
[333291629,1722034242669,-457.52091022,0.00013698,2]
[333291630,1722034242679,-475.97552572,0.00013698,2]
[333291631,1722034242690,-500.0,0.00013698,2]
[333291632,1722034242700,-640.43780664,0.00013698,2]
[333291633,1722034242709,-500.0,0.00013698,2]
[333291634,1722034242719,-500.0,0.00013698,2]
[333291635,1722034242729,-754.12,0.00013698,2]
[333291636,1722034242739,-500.0,0.00013698,2]
[333291638,1722034242749,-500.0,0.00013698,2]
[333291640,1722034242760,-500.0,0.00013698,2]
[333291642,1722034242770,-500.0,0.00013698,2]
[333291644,1722034242780,-513.49145034,0.00013698,2]
[333291646,1722034242790,-205.07780958,0.00013698,2]
[333291648,1722034242800,-500.0,0.00013698,2]
[333291650,1722034242810,-500.0,0.00013698,2]
[333291652,1722034242825,-307.336085,0.00013698,2]
[333291653,1722034242835,-307.336085,0.00013698,2]
[333291654,1722034242845,-307.336085,0.00013698,2]
[333291655,1722034242855,-307.336085,0.00013698,2]
[333291656,1722034242866,-307.336085,0.00013698,2]
[333291657,1722034242877,-307.336085,0.00013698,2]
[333291658,1722034242888,-500.0,0.00013698,2]
[333291659,1722034242901,-307.336085,0.00013698,2]
[333291660,1722034242911,-307.336085,0.00013698,2]
[333291662,1722034242923,-307.336085,0.00013698,2]
[333291664,1722034242934,-307.336085,0.00013698,2]
[333291666,1722034242945,-307.336085,0.00013698,2]
[333291668,1722034242956,-307.336085,0.00013698,2]
[333291670,1722034242966,-307.336085,0.00013698,2]
[333291672,1722034242976,-307.336085,0.00013698,2]
[333291674,1722034242987,-307.336085,0.00013698,2]
[333291676,1722034242996,-307.336085,0.00013698,2]
[333291678,1722034243006,-307.336085,0.00013698,2]
[333291680,1722034243016,-307.336085,0.00013698,2]
[333291682,1722034243026,-307.336085,0.00013698,2]
[333291684,1722034243037,-307.336082,0.00013698,2]
[333291686,1722034243046,-151.0,0.00013698,2]
[333291688,1722034243056,-500.0,0.00013698,2]
[333291690,1722034243066,-649.40005782,0.00013698,2]
[333291692,1722034243076,-500.0,0.00013698,2]
[333291694,1722034243086,-500.0,0.00013698,2]
[333291696,1722034243096,-500.0,0.00013698,2]
[333291698,1722034243107,-500.0,0.00013698,2]
[333291700,1722034243117,-500.0,0.00013698,2]
[333291703,1722034243128,-746.9,0.00013698,2]
[333291705,1722034243139,-500.0,0.00013698,2]
[333291707,1722034243150,-500.0,0.00013698,2]
[333291709,1722034243161,-500.0,0.00013698,2]
[333291711,1722034243171,-500.0,0.00013698,2]
[333291713,1722034243181,-500.0,0.00013698,2]
[333291715,1722034243192,-505.86713518,0.00013698,2]
[333291717,1722034243203,-500.0,0.00013698,2]
[333291719,1722034243214,-500.0,0.00013698,2]
[333291721,1722034243225,-1678.12,0.00013698,2]
[333291723,1722034243235,-500.0,0.00013698,2]
[333291725,1722034243246,-500.0,0.00013698,2]
[333291727,1722034243255,-2507.13,0.00013698,2]
[333291729,1722034243265,-151.0,0.00013698,2]
[333291731,1722034243274,-2385.82,0.00013698,2]
[333291733,1722034243287,-1335.19,0.00013698,2]
[333291735,1722034243297,-500.0,0.00013698,2]
[333291737,1722034243306,-565.19,0.00013698,2]
[333291739,1722034243316,-1347.16,0.00013698,2]
[333291741,1722034243325,-151.0,0.00013698,2]
[333291743,1722034243336,-151.0,0.00013698,2]
[333291745,1722034243345,-500.0,0.00013698,2]
[333291747,1722034243354,-349.751783,0.00013698,2]
[333291749,1722034243365,-349.751783,0.00013698,2]
[333291751,1722034243374,-349.751783,0.00013698,2]
[333291753,1722034243383,-349.751783,0.00013698,2]
[333291755,1722034243392,-349.751783,0.00013698,2]
[333291757,1722034243401,-349.751783,0.00013698,2]
[333291759,1722034243410,-349.751783,0.00013698,2]
[333291761,1722034243420,-349.751783,0.00013698,2]
[333291763,1722034243430,-349.751783,0.00013698,2]
[333291765,1722034243440,-349.751783,0.00013698,2]
[333291767,1722034243449,-349.751783,0.00013698,2]
[333291769,1722034243459,-349.751783,0.00013698,2]
[333291771,1722034243471,-349.751783,0.00013698,2]
[333291773,1722034243480,-349.751783,0.00013698,2]
[333291775,1722034243489,-349.751783,0.00013698,2]
[333291777,1722034243499,-349.751783,0.00013698,2]
[333291779,1722034243508,-349.751783,0.00013698,2]
[333291781,1722034243517,-349.751783,0.00013698,2]
[333291783,1722034243527,-349.751783,0.00013698,2]
[333291785,1722034243537,-278.968368,0.00013698,2]
[333291787,1722034243547,-463.88769899,0.00013698,2]
[333291809,1722034243941,-708.99230101,0.00013698,2]
[333291811,1722034243950,-349.751779,0.00013698,2]
[333291812,1722034243960,-278.968368,0.00013698,2]
[333291813,1722034243969,-500.0,0.00013698,2]
[333291815,1722034243978,-278.968368,0.00013698,2]
[333291816,1722034243987,-278.968368,0.00013698,2]
[333291818,1722034243997,-278.968368,0.00013698,2]
[333291821,1722034244006,-278.968368,0.00013698,2]
[333291822,1722034244016,-278.968368,0.00013698,2]
[333291824,1722034244025,-500.0,0.00013698,2]
[333291826,1722034244036,-5878.5,0.00013698,2]
[333291828,1722034244046,-278.968368,0.00013698,2]
[333291830,1722034244055,-278.968368,0.00013698,2]
[333291831,1722034244064,-151.0,0.00013698,2]
[333291833,1722034244074,-278.968368,0.00013698,2]
[333291835,1722034244084,-151.0,0.00013698,2]
[333291837,1722034244095,-151.0,0.00013698,2]
[333291839,1722034244104,-278.968368,0.00013698,2]
[333291841,1722034244114,-278.968368,0.00013698,2]
[333291843,1722034244123,-278.968368,0.00013698,2]
[333291845,1722034244133,-278.968368,0.00013698,2]
[333291846,1722034244144,-500.0,0.00013698,2]
[333291848,1722034244153,-278.968368,0.00013698,2]
[333291850,1722034244164,-278.968368,0.00013698,2]
[333291852,1722034244174,-278.968368,0.00013698,2]
[333291854,1722034244184,-278.968368,0.00013698,2]
[333291856,1722034244193,-278.968368,0.00013698,2]
[333291858,1722034244202,-278.968363,0.00013698,2]
[333291859,1722034244211,-500.0,0.00013698,2]
[333291861,1722034244221,-500.0,0.00013698,2]
[333291863,1722034244230,-151.0,0.00013698,2]
[333291864,1722034244239,-151.0,0.00013698,2]
[333291865,1722034244250,-151.0,0.00013698,2]
[333291866,1722034244260,-500.0,0.00013698,2]
[333291867,1722034244269,-151.0,0.00013698,2]
[333291868,1722034244280,-500.0,0.00013698,2]
[333291869,1722034244290,-151.0,0.00013698,2]
[333291870,1722034244299,-151.0,0.00013698,2]
[333291871,1722034244309,-151.0,0.00013698,2]
[333291872,1722034244318,-302.18389473,0.00013698,2]
[333291902,1722034246773,88.81320775,9.9e-05,2]
[333291906,1722034246796,184.56015456,9.9e-05,2]
[333292011,1722034255471,273.37336231,9.9e-05,2]
[333292012,1722034263535,273.37336231,9.9e-05,2]
[333292013,1722034271357,273.37336231,9.9e-05,2]
[333292014,1722034280083,273.37336231,9.9e-05,2]
[333292015,1722034294916,857.87762945,0.00012,2]
[333292016,1722034392319,150.0,0.00016,30]
[333292017,1722034965588,2071.0,9.51e-05,7]
[333292018,1722035254134,-244.8574405,9.415e-05,2]
[333292019,1722035254159,-1991.61781473,9.51e-05,2]
[333292021,1722035346122,-5499.89862439,9.51e-05,2]
[333292022,1722035346146,-2735.66821376,9.51e-05,2]
[333292023,1722035346168,-182.98073957,9.999e-05,2]
[333292138,1722035433472,-289.98690504,0.00013598,2]
[333292140,1722035433482,-264.93410712,0.00013624,2]
[333292142,1722035433491,-1257.0446399,0.00013647,4]
[333292144,1722035433501,-10001.6254828,0.00013688,2]
[333292145,1722035433513,-777.92281158,0.00013688,2]
[333294671,1722035461917,154.83736516,0.0001212,2]
[333294766,1722035463097,77.61505712,0.0001212,2]
[333294767,1722035463120,213.48350308,0.0001212,2]
[333294770,1722035688095,150.68356451,0.00017772,30]
[333294771,1722035688169,150.68356451,0.00017417,120]
[333294772,1722036119351,150.68356451,0.00017923,30]
[333294773,1722036119469,150.68356451,0.00017564,120]
[333294774,1722036337982,150.69860279,0.00018087,30]
[333294775,1722036338198,150.69860279,0.00017725,120]
[333294776,1722036390163,-182.98073957,9.999e-05,2]
[333294777,1722036390185,-87.75766317,9.999e-05,2]
[333294778,1722036439138,-68.70444893,9.999e-05,2]
[333294779,1722036439160,-240.32185851,9.999e-05,2]
[333294780,1722036439182,-16.56428448,9.999e-05,2]
[333294781,1722036448108,-3173.60055524,9.999e-05,2]
[333294790,1722036545119,-666.106732,9.899e-05,2]
[333294791,1722036545142,-7543.73243189,9.999e-05,2]
[333294792,1722036545165,-172.65205475,9.999e-05,2]
[333294793,1722036545187,-981.56131075,9.999e-05,2]
[333294794,1722036545208,-1625.75328864,9.999e-05,2]
[333294795,1722036545229,-156.59429784,9.999e-05,2]
[333294796,1722036545250,-233.0916429,9.999e-05,2]
[333294797,1722036545272,-200.0,0.0001,2]
[333294798,1722036545293,-400.0,0.0001137,2]
[333294799,1722036545318,-409.7787523,0.00012412,2]
[333294800,1722036547862,405.2132632,0.0001127,2]
[333294801,1722036550335,200.0,9.9e-05,2]
[333294803,1722036617320,319.88244183,0.00012,2]
[333294804,1722036625922,804.1237839,0.00012,2]
[333294805,1722036625948,577.74789626,0.00012,2]
[333294807,1722036630337,254.78704357,0.00012,2]
[333294819,1722036632674,-299.04394875,0.00013256,2]
[333294820,1722036632684,-200.0,0.00013425,2]
[333294821,1722036632694,-153.0,0.000135,2]
[333294822,1722036632704,-153.0,0.000135,2]
[333294823,1722036632715,-253.73854191,0.00013588,2]
[333294824,1722036632725,-936.15044965,0.00013588,2]
[333294825,1722036632735,-306.0,0.000136,2]
[333294826,1722036632748,-153.0,0.000136,2]
[333294827,1722036632761,-2646.740532,0.000136,2]
[333294828,1722036632770,-413.4893308,0.000136,2]
[333294829,1722036632780,-153.0,0.000136,2]
[333294830,1722036632791,-587.7673814,0.000136,2]
[333294831,1722036632800,-153.0,0.000136,2]
[333294832,1722036632809,-153.0,0.000136,2]
[333294833,1722036632819,-936.15044964,0.00013657,2]
[333294834,1722036632829,-145599.349963,0.00013688,2]
[333294835,1722036632838,-27747.62592387,0.00013689,2]
[333294836,1722036632850,-703.7636435,0.00013689,2]
[333295056,1722036638722,-621.10261512,0.00013689,2]
[333295291,1722036644070,-3440.80223846,0.00013689,2]
[333295292,1722036644083,-1378.66993618,0.00013689,2]
[333295293,1722036644095,-1707.10442384,0.00013689,2]
[333295309,1722036646778,-374.9181638,0.00013689,2]
[333295312,1722036646790,-425.85054593,0.00013689,2]
[333295313,1722036646800,-500.0,0.00013698,2]
[333295314,1722036646810,-506.49774557,0.00013698,2]
[333295315,1722036646820,-500.0,0.00013698,2]
[333295316,1722036646830,-500.0,0.00013698,2]
[333295317,1722036646840,-500.0,0.00013698,2]
[333295318,1722036646850,-500.0,0.00013698,2]
[333295319,1722036646859,-500.0,0.00013698,2]
[333295320,1722036646869,-500.0,0.00013698,2]
[333295321,1722036646879,-500.0,0.00013698,2]
[333295322,1722036646891,-500.0,0.00013698,2]
[333295323,1722036646901,-500.0,0.00013698,2]
[333295324,1722036646911,-500.0,0.00013698,2]
[333295325,1722036646921,-500.0,0.00013698,2]
[333295326,1722036646931,-1047.32,0.00013698,2]
[333295327,1722036646941,-500.0,0.00013698,2]
[333295328,1722036646951,-500.0,0.00013698,2]
[333295329,1722036646961,-500.0,0.00013698,2]
[333295330,1722036646970,-500.0,0.00013698,2]
[333295331,1722036646980,-500.0,0.00013698,2]
[333295332,1722036646990,-500.0,0.00013698,2]
[333295333,1722036647000,-500.0,0.00013698,2]
[333295334,1722036647010,-500.0,0.00013698,2]
[333295335,1722036647021,-500.0,0.00013698,2]
[333295336,1722036647031,-23.0023121,0.00013698,2]
[333295337,1722036647167,-476.9976879,0.00013698,2]
[333295338,1722036647178,-500.0,0.00013698,2]
[333295339,1722036647187,-500.0,0.00013698,2]
[333295340,1722036647197,-482.41493037,0.00013698,2]
[333295341,1722036647206,-500.0,0.00013698,2]
[333295342,1722036647216,-500.0,0.00013698,2]
[333295343,1722036647226,-500.0,0.00013698,2]
[333295344,1722036647236,-500.0,0.00013698,2]
[333295345,1722036647246,-233.52198101,0.00013698,2]
[333295346,1722036647255,-500.0,0.00013698,2]
[333295347,1722036647265,-500.0,0.00013698,2]
[333295348,1722036647275,-533.85,0.00013698,2]
[333295349,1722036647284,-742.81,0.00013698,2]
[333295350,1722036647294,-799.72,0.00013698,2]
[333295351,1722036647303,-841.13,0.00013698,2]
[333295352,1722036647313,-856.87,0.00013698,2]
[333295353,1722036647323,-500.0,0.00013698,2]
[333295354,1722036647332,-500.0,0.00013698,2]
[333295355,1722036647342,-500.0,0.00013698,2]
[333295356,1722036647351,-151.0,0.00013698,2]
[333295357,1722036647361,-220.496676,0.00013698,2]
[333295358,1722036647371,-500.0,0.00013698,2]
[333295359,1722036647380,-500.0,0.00013698,2]
[333295360,1722036647390,-802.43,0.00013698,2]
[333295361,1722036647399,-500.0,0.00013698,2]
[333295362,1722036647409,-500.0,0.00013698,2]
[333295363,1722036647418,-500.0,0.00013698,2]
[333295364,1722036647428,-500.0,0.00013698,2]
[333295365,1722036647438,-500.0,0.00013698,2]
[333295366,1722036647447,-500.0,0.00013698,2]
[333295367,1722036647456,-500.0,0.00013698,2]